Cogmind - Beta 16 @@@ ROGUE MODE // 2025.10.29 @ 19:55:08 Player: Anonymous Bosch Result: Destroyed by JY-2IO(R) with Subdweller Laser Performance ------------- Evolutions (0) 0 Regions Visited (2) 400 Robots Destroyed (33) 165 Value Destroyed (632) 632 Prototype IDs (0) 0 Alien Tech Used (0) 0 Bonus (0) 0 TOTAL SCORE: 1197 Bonus ------- None Cogmind --------- Core Integrity 0/250 Matter 258/300 Energy 125/125 System Corruption 0% Temperature Cool (6) Movement Treading (160) Location -10/Subcaves Parts ------- > --- POWER (1) -------- Light Ion Engine > --- PROPULSION (2) --- Light Treads Light Treads > --- UTILITY (2) ------ Large Storage Unit Makeshift Thermal Plating > --- WEAPON (2) ------- Battle Rifle Light Cannon > --- INVENTORY (15) --- Ion Engine Light Treads Light Treads Heat Sink Small Storage Unit Light Armor Plating Makeshift Light Armor Plating Shield Generator Hacking Suite Subdweller Laser Light Cannon Mini Grenade Launcher Mini Grenade Launcher Datajack Hammer Peak State ------------ > --- POWER ------------ Light Ion Engine > --- PROPULSION ------- Light Treads Light Treads > --- UTILITY ---------- Large Storage Unit Makeshift Thermal Plating > --- WEAPON ----------- Battle Rifle Light Cannon > --- INVENTORY -------- Ion Engine Light Treads Light Treads Heat Sink Small Storage Unit Light Armor Plating Light Armor Plating Shield Generator Hacking Suite Subdweller Laser Light Cannon Mini Grenade Launcher Mini Grenade Launcher Datajack Hammer [Rating: 13] Favorites ----------- Power Light Ion Engine Engine Light Ion Engine Power Core Light Nuclear Core Propulsion Light Treads Treads Light Treads Leg Aluminum Leg Utility Large Storage Unit Device Seismic Detector Storage Large Storage Unit Protection Light Armor Plating Weapon Light Cannon Energy Gun Medium Laser Ballistic Gun Battle Rifle Ballistic Cannon Light Cannon Impact Weapon Hammer Build | -11 -10 -10 ------- Run | Yrd Mat Sub Slots Evolved . | . . . Power . | . . . Propulsion . | . . . Utility . | . . . Weapon . | . . . Parts Attached 24 | 8 14 2 Power 4 | 1 3 . Engine 3 | 1 2 . Core 1 | . 1 . Reactor . | . . . Propulsion 4 | 4 . . Treads 2 | 2 . . Leg 2 | 2 . . Wheel . | . . . Hover . | . . . Flight . | . . . Utility 6 | 1 4 1 Device 2 | . 2 . Storage 2 | 1 1 . Processor . | . . . Hackware . | . . . Protection 2 | . 1 1 Artifact . | . . . Weapon 10 | 2 7 1 Energy Gun 3 | 2 1 . Energy Cannon . | . . . Ballistic Gun 4 | . 3 1 Ballistic Cannon 2 | . 2 . Launcher . | . . . Special Weapon . | . . . Impact Weapon 1 | . 1 . Slashing Weapon . | . . . Piercing Weapon . | . . . Special Melee Weapon . | . . . Unidentified Prototypes . | . . . Parts Lost 5 | . 5 . Power 1 | . 1 . Propulsion 2 | . 2 . Utility 1 | . 1 . Weapon 1 | . 1 . Highest Loss Streak 2 | . 2 . To Critical Strikes . | . . . Average Backups 11 | 4 9 15 Power . | . . 1 Propulsion 1 | 1 1 2 Utility 4 | 1 3 6 Weapon 3 | 1 2 4 Tool/Special . | . . . Unused Backups 22 | . 7 15 Power 2 | . 1 1 Propulsion 3 | . 1 2 Utility 9 | . 2 7 Weapon 7 | . 3 4 Tool/Special 1 | . . 1 Average Slot Usage (%) 98 | . 97 100 Engine 12 | . 12 14 Core 1 | . 1 . Treads 22 | . 19 28 Leg 5 | . 7 . Device 2 | . 3 . Storage 14 | . 14 14 Protection 10 | . 9 14 Energy Gun 3 | . 5 . Ballistic Gun 3 | . 1 9 Ballistic Cannon 18 | . 18 18 Impact Weapon 1 | . 2 . Peak Build Rating 13 | 6 11 13 Average Rating 9 | 5 7 12 On Entrance 5 | . 6 9 Avg Prop Armor Cover (%) 12 | 12 . . Naked Turns . | . . . Heaviest Build 33 | 12 32 33 Greatest Support 40 | 20 40 40 Greatest Overweight (x) 1 | 1 . . Average Overweight (x) . | . . . Largest Inventory Capacity 15 | 8 15 15 Average Capacity 11 | 7 10 15 Most Carried 15 | 7 15 15 Average Carried 11 | 4 9 15 Final Capacity 15 | 8 15 15 Final Carried 15 | 7 15 15 Class Distribution -------------------- 100% | Mutant Dominant Class ---------------- Mutant | -10/Materials Mutant | -10/Subcaves Resources | -11 -10 -10 ----------- Run | Yrd Mat Sub Matter Collected 838 | 228 501 109 Remotely . | . . . Salvage Created 844 | 84 640 120 Parts 57 | 7 39 11 Haulers Intercepted 2 | . 2 . Recyclers Shooed 1 | 1 . . Parts Field Recycled . | . . . Retrieved Matter . | . . . Parts Self-Destructed 10 | . . 10 Prevented . | . . . Parts Restored . | . . . Kills | -11 -10 -10 ------- Run | Yrd Mat Sub Combat Hostiles Destroyed 23 | . 18 5 Melee 6 | . 6 . Guns 8 | . 7 1 Cannons 7 | . 3 4 Classes Destroyed 10 | 2 6 2 Worker 1 | . 1 . Tunneler 1 | 1 . . Hauler 2 | . 2 . Recycler 2 | 1 1 . Operator 1 | . 1 . Watcher 3 | . 3 . Swarmer 12 | . 9 3 Grunt 9 | . 9 . Sentry 1 | . . 1 Subdweller 1 | . . 1 Best Kill Streak 8 | 1 8 4 Combat Bots Only 7 | . 7 4 Max Kills in Single Turn 1 | 1 1 1 Gunslinging . | . . . Exploded . | . . . Melee 1 | . 1 . Uniques/NPCs Destroyed . | . . . Combat | -11 -10 -10 -------- Run | Yrd Mat Sub Hostile Shots Fired 152 | . 117 35 Missed 48 | . 36 12 Hits 104 | . 81 23 Projectile 104 | . 81 23 Damage Taken 1082 | . 730 352 Core 254 | . 167 87 Absorbed by Shields . | . . . Ignored by Resistances 20 | . . 20 Regen/Repaired (Parts) 53 | . 53 . Core Remaining (%) 100 | 100 . . Volleys Fired 69 | 5 46 18 Largest 2 | 2 2 2 Hottest 90 | 90 90 60 Shots Fired 138 | 10 92 36 Gun 75 | 10 52 13 Cannon 63 | . 40 23 Launcher . | . . . Special . | . . . Kinetic 90 | . 54 36 Thermal 32 | 5 27 . Explosive . | . . . Electromagnetic 16 | 5 11 . Robot Hit Streak 6 | 3 6 6 Robot Miss Streak 3 | 2 3 3 Penetration Max . | . . . Secondary Targets . | . . . Shots Hit Robots 106 | 5 78 23 Core Hits 35 | 3 26 6 Critical Kills 2 | . 2 . Critical Parts Destroyed 4 | . 4 . Critical Strikes 11 | . 11 . Burn 1 | . 1 . Blast 4 | . 4 . Smash 6 | . 6 . Melee Attacks 38 | . 38 . Impact 38 | . 38 . Slashing . | . . . Piercing . | . . . Sneak Attacks 1 | . 1 . Combat Hostiles . | . . . Follow-up Attacks . | . . . Damage Inflicted 1688 | 64 1385 239 Guns 515 | 64 391 60 Cannons 569 | . 390 179 Explosions 64 | . 64 . Melee 540 | . 540 . Ramming . | . . . Kinetic 717 | . 478 239 Thermal 300 | 36 264 . Explosive . | . . . Electromagnetic 131 | 28 103 . Impact 540 | . 540 . Slashing . | . . . Piercing . | . . . Highest Corruption . | . . . Average Corruption . | . . . Corruption Purged . | . . . Corruption Blocked . | . . . Overload Shots . | . . . Overflow Damage 180 | . 180 . Projectiles 7 | . 7 . Explosions . | . . . Melee 173 | . 173 . Knockbacks 3 | . 2 1 Impact 2 | . 2 . Kinetic 1 | . . 1 Secondary . | . . . Self-Inflicted Damage . | . . . Shots . | . . . Rammed . | . . . Targets Rammed 1 | . 1 . Kicked . | . . . Crushed 1 | . 1 . Highest Temperature 342 | 120 342 . Average Temperature 87 | 52 92 . Received Heat Transfer 240 | . 177 63 Effects 2 | . 2 . Matter Decay 1 | . 1 . Short Circuit 1 | . 1 . Siege Activations . | . . . Martial Activations . | . . . Shielding Activations . | . . . Robots Disrupted . | . . . Combat Hostiles . | . . . Robots Corrupted 2 | . 2 . Combat Hostiles 2 | . 2 . Parts Fried 3 | . 3 . Impact Corruptions 8 | . 8 . Robots Melted . | . . . Combat Hostiles . | . . . Parts Melted 3 | . 3 . Heat Transferred 780 | 111 669 . Parts Sabotaged . | . . . Parts Stolen . | . . . Parts Stripped . | . . . Power Chain Reactions . | . . . Alert | -11 -10 -10 ------- Run | Yrd Mat Sub Maximum Alert Level 1 | . 1 . Low Security (%) 95 | 100 95 . Level 1 4 | . 4 . Level 2 . | . . . Level 3 . | . . . Level 4 . | . . . Level 5 . | . . . High Security . | . . . Max Security . | . . . Peak Influence 220 | 5 220 . Initial . | . . . Average 66 | 1 69 . Influence Increases 735 | 10 635 90 Destroy 0b10 Robot/C 440 | . 360 80 Destroy 0b10 Robot/NC 50 | 10 40 . Destroy Leader 90 | . 80 10 Successful Hack 8 | . 8 . Disable Machine 30 | . 30 . Destroy Structure 12 | . 12 . Lose Combat Pursuer 105 | . 105 . Influence Decreases 735 | 10 611 114 Entered New Map 12 | . . 12 Time Decay 683 | 10 571 102 Lost Part 40 | . 40 . Squads Dispatched 3 | . 3 . Investigation 1 | . 1 . Extermination . | . . . Reinforcement 2 | . 2 . Assault . | . . . Garrison . | . . . Intercept . | . . . Searches Triggered . | . . . Construction Impeded . | . . . Haulers Reinforced . | . . . Active Scanning Responses . | . . . Cargo Convoy Interrupts . | . . . Stealth | -11 -10 -10 --------- Run | Yrd Mat Sub Distress Signals 1 | . 1 . Communications Jammed . | . . . Distress Signals . | . . . Times Spotted 41 | . 34 7 Peak Tracking Total 6 | . 6 4 Tactical Retreats 3 | . 3 . Traps | -11 -10 -10 ------- Run | Yrd Mat Sub Traps Triggered . | . . . Indirectly . | . . . Trap Hack Attempts . | . . . Triggered . | . . . Disarmed . | . . . Reprogrammed . | . . . Reused . | . . . Traps Extracted . | . . . Installed . | . . . Triggered . | . . . Machines | -11 -10 -10 ---------- Run | Yrd Mat Sub Machines Disabled 2 | . 2 . Max in Single Turn 1 | . 1 . Machines Repaired . | . . . Machines Dismantled . | . . . Machines Sabotaged . | . . . Overloaded Fab Kills . | . . . Hacking | -11 -10 -10 --------- Run | Yrd Mat Sub Machines Accessed 7 | . 7 . Terminals 4 | . 4 . Fabricators . | . . . Repair Stations 1 | . 1 . Recycling Units 2 | . 2 . Scanalyzers . | . . . Garrison Access . | . . . Total Hacks 17 | . 17 . Successful 4 | . 4 . Failed 13 | . 13 . Catastrophic 5 | . 5 . Database Lockouts . | . . . Manual 13 | . 13 . Terminals 12 | . 12 . Fabricators . | . . . Repair Stations 3 | . 3 . Recycling Units 2 | . 2 . Scanalyzers . | . . . Garrison Access . | . . . Terminal Hacks 1 | . 1 . Branch Access Points 1 | . 1 . Fabricator Hacks . | . . . Repair Station Hacks 2 | . 2 . Scan Component 1 | . 1 . Repair 1 | . 1 . Recycling Unit Hacks 1 | . 1 . Report Inventory 1 | . 1 . Scanalyzer . | . . . Garrison Access Hacks . | . . . Unauthorized Hacks . | . . . Terminals . | . . . Fabricators . | . . . Repair Stations . | . . . Recycling Units . | . . . Scanalyzers . | . . . Garrison Access . | . . . Data Cores Recovered . | . . . Used . | . . . Hacking Detections 6 | . 6 . Full Trace Events 3 | . 3 . Feedback Events . | . . . Feedback Blocked . | . . . Robot Schematics Acquired . | . . . Robots Built . | . . . Authchips . | . . . Time . | . . . Total Robot Build Rating . | . . . Part Schematics Acquired . | . . . Parts Built . | . . . Authchips . | . . . Time . | . . . Total Part Build Rating . | . . . Part Studies Acquired . | . . . Parts Repaired 1 | . 1 . Time 26 | . 26 . Parts Recycled . | . . . Recycled Matter . | . . . Retrieved Matter . | . . . Retrieved Components . | . . . Parts Scanalyzed . | . . . Part Schematics Acquired . | . . . Parts Damaged . | . . . Bothacking | -11 -10 -10 ------------ Run | Yrd Mat Sub Used RIF Installer . | . . . Robots Hacked . | . . . Non-combat . | . . . Combat . | . . . Robot Hacks Applied . | . . . Relay Couplers Released . | . . . Fabnet Peak Effective % . | . . . Robots Rewired . | . . . Allies Hacked . | . . . Hacks Repelled . | . . . Allies | -11 -10 -10 -------- Run | Yrd Mat Sub Total Allies . | . . . Largest Group . | . . . Highest-Rated Group . | . . . Highest-Rated Ally . | . . . Total Orders . | . . . Ally Attacks . | . . . Total Damage . | . . . Kills . | . . . Allies Corrupted . | . . . Allies Melted . | . . . Intel | -11 -10 -10 ------- Run | Yrd Mat Sub Active Infowar (turns) 564 | . 564 . Terrain 157 | . 157 . Seismic 407 | . 407 . Robot Analysis Total . | . . . Derelict Logs Recovered 1 | . . 1 Drone Launches . | . . . Drone Recoveries . | . . . Exploration | -11 -10 -10 ------------- Run | Yrd Mat Sub Turns Passed 2994 | 99 2026 869 Spaces Moved 1438 | 46 914 478 Core 7 | 7 . . Treads 1127 | 1 648 478 Legs 304 | 38 266 . Wheels . | . . . Hover . | . . . Flight . | . . . Fastest Speed 50 | 50 120 160 Average Speed 151 | 136 148 160 Slowest Speed 190 | 190 160 160 Overloaded Moves . | . . . Propulsion Burnouts . | . . . Robots Hopped . | . . . Potential Cave-ins . | . . . Cave-ins Triggered . | . . . Exploration Rate (%) 42 | 4 94 29 Regions Visited 2 Branch Regions 1 Pre-discovered Areas . | . . . Known Exits Taken . | . . . Unknown Exits Taken 2 | 1 1 . Scrap Searched 4 | . . 4 Spaces Dug 1 | . 1 . Terrain Destroyed 11 | . 11 . Melee 1 | . 1 . Projectile . | . . . AOE 10 | . 10 . Terrain Rammed . | . . . Walls Destroyed . | . . . Machines Disabled . | . . . Actions | -11 -10 -10 --------- Run | Yrd Mat Sub Total 2050 | 70 1430 550 Wait 419 | . 373 46 Move 1436 | 45 913 478 Hop . | . . . Pick Up 36 | 11 23 2 Fast Attach 8 | 2 4 2 Attach 10 | 4 6 . Detach . | . . . Swap 14 | 3 11 . Drop 19 | . 15 4 Fire 69 | 5 46 18 Melee 38 | . 38 . Ram . | . . . Kick . | . . . Crush 1 | . 1 . Escape Stasis . | . . . Rewire . | . . . Trap . | . . . Miscellaneous . | . . . Route ------- -11/Scrapyard -10/Materials (discovered 4 exits: [*Mat x2] / *Min / [*Sub]) -10/Subcaves (discovered 1 exit: Rec) History --------- Turn | Location | Event 8 | -11/Scrapyard | Discovered new exit (range 16) 100 | -11/Scrapyard | Entered Materials 207 | -10/Materials | Discovered new exit (range 15) 312 | -10/Materials | Build established: Mutant 325 | -10/Materials | Discovered new exit (range 5) 657 | -10/Materials | Core integrity fell below 50% 719 | -10/Materials | Destroyed 7 combat bots 869 | -10/Materials | Discovered new exit (range 7) 1180 | -10/Materials | Repaired Lgt. Treads 1829 | -10/Materials | Discovered new exit (range 5) 1937 | -10/Materials | Identified exit to Mines 2126 | -10/Materials | Entered Subcaves 2127 | -10/Subcaves | Shifting Twisted Machinery released Sub. Laser 2136 | -10/Subcaves | Shifting Twisted Machinery released Mak. Thermal Plating 2657 | -10/Subcaves | Identified exit to Recycling 2990 | -10/Subcaves | Core integrity fell below 20% 2995 | -10/Subcaves | Destroyed by JY-2IO(R) with Subdweller Laser Last Messages --------------- 02421_ Subatomizers dissect the Sub. Monowheel. 02598_ S-10 Pest destroyed. 02610_ Flight Unit fries itself beyond repair. 02611_ Lgt. Ion Engine fries itself beyond repair. 02613_ Lgt. Assault Rifle fries itself beyond repair. 02613_ Y-45 Defender destroyed. 02616_ Flight Unit fries itself beyond repair. 02618_ Lgt. Ion Engine fries itself beyond repair. 02619_ Heat Sink fries itself beyond repair. 02619_ Acquired 3 matter. 02620_ Acquired 46 matter. 02621_ Lgt. Treads fries itself beyond repair. 02624_ Hvy. Assault Rifle fries itself beyond repair. 02657_ Acquired derelict log, extracted data. Loading 1 Recycling entrance... Map ----- +----------------------------------------------------+ | ???????????????????????????????????????# #???? | | ???????????????????????????????????????# #???? | | ??????????????????????????????????????# ## ###??? | | ?????????????????????????????????????#### #??? | | ????????????????????????????????????## #??? | | ????????????????????????????????????# #??? | | ????????????????????????????????????## #??? | | ??????????????????????????????????#### ##??? | | ?????????????????????????????????## ######???? | | ????????????????????????????##???# ###????????? | | ???????????????????????????## ?## #??????####? | | ???????????????????????????# ## ##????## #? | | ??????????????????? ""???????# ###### #? | | ???????????????????# "?####?## ##? | | ????????????????????# " # # #?## ###?? | | ???????????????????#""" ### #???? | | ????????????????????# ##??# | | ????????????????????????# # ## ## # | | ?????????????????????????# ### | | ?????????????????????????#### ### #### | | ???????????????????????????## ###?# ##?? | | ??????????????????????????## ####### ## ##? | | ?????????????????????????## O ## ### ### ## | | ????????????????????????## #### # | | ????????????????????????# #?# # | | ????????????????????????#@ #?#% # | | ????????????????????????# [ #?#% % # | | ??????????????????????# #### #?# ### # | | ??????????????????????##R &#??### ##?##??## # | | ?????????????????????? #????# #???????# # | | ?????????????????????#$#< #????? #??????# # | | ?????????????????????### #????? #?????## # | | ???????????????????????## ??????# #??????#### | | ????????????????????????# ####?????? #?????????? | | ????????????????????????# #?????????? #?????????? | | ????????????????????????# #?????????? ?????????? | | ????????????????????????####???????????# ????????? | | ????????????????????????????????????????##???????? | | ?????????????????????????????????????????????????? | | ?????????????????????????????????????????????????? | | ?????????????????????????????????????????????????? | | ?????????????????????????????????????????????????? | | ?????????????????????????????????????????????????? | | ?????????????????????????????????????????????????? | | ?????????????????????????????????????????????????? | | ?????????????????????????????????????????????????? | | ?????????????????????????????????????????????????? | | ?????????????????????????????????????????????????? | | ?????????????????????????????????????????????????? | | ?????????????????????????????????????????????????? | +----------------------------------------------------+ Best States ------------- Heat Dissipation 25 Energy Generation 14 Energy Capacity 250 Matter Stores 300 Matter Capacity 300 Sight Range 16 Terrain Scan Range 16 Terrain Scan Density 10 Armor Coverage 150 Resistance: TH 10 Evasion (%) 55 Recoil Reduction 2 Item Schematics ----------------- None Robot Schematics ------------------ None Fabricated ------------ Nothing Repaired ---------- Lgt. Treads | 62% | -10/Materials Studied --------- None Alien Tech Used ----------------- None Achievements -------------- None Challenges ------------ None Game ------ Seed SiegeAssemblyScanner Manual? 0 Play Time 00:28:28 Cumulative 26.2 hours Start 2025.10.29 @ 19:16:47 End 2025.10.29 @ 19:55:08 Sessions 1 Manual Loads 0 Difficulty Rogue Special Mode None Game No. 17 Rogue 17 Adventurer 0 Explorer 0 Win Type - Total 0 Types 0/0/0/0/0/0/0/0/0/0 Lore% 12 Gallery% 25 Achievement% 23 Wizard Run 0 Options --------- Layout 1 ASCII 0 Keyboard 0 Movement Numpad Keybinds 0 Fullscreen 1 Font 24/Smallcaps Map View 50x35 Zoom Use 0% Tactical HUD 1 Map Filters NONE Filters NONE Steam 1 RUN: ec76ed12-369a-4277-83d4-98be2156fce8